bitfinex-derivatives/quotes_SOLF0:USTF0_20251101
["timestamp","ask_amount","ask_price","bid_price","bid_amount"]
[1762007471822,4.8881,184.21,184.12,5.05970328]
[1762007471823,7.48694989,184.17,184.13,36.16]
[1762007472033,7.48694989,184.16,184.13,36.16]
[1762007472331,2.9,184.14,184.11,5.05970328]
[1762007472625,2.9,184.14,184.12,35.46]
[1762007472626,4.58726485,184.13,184.12,35.46]
[1762007475427,6.05,184.17,184.12,35.46]
[1762007475630,4.58687111,184.16,184.12,40.51970328]
[1762007475825,4.58687111,184.15,184.12,40.51970328]
[1762007476026,8.95,184.17,184.12,40.51970328]
[1762007476325,4.5870557,184.16,184.12,40.51970328]
[1762007476630,4.5870557,184.15,184.12,40.51970328]
[1762007476927,4.5870557,184.14,184.12,40.51970328]
[1762007477129,2.89,184.16,184.12,40.51970328]
[1762007477323,7.47734308,184.15,184.12,40.51970328]
[1762007477525,2.89,184.15,184.12,40.51970328]
[1762007477724,4.58720135,184.14,184.12,5.05970328]
[1762007478022,2.89,184.15,184.12,5.05970328]
[1762007478430,8.94,184.17,184.12,5.05970328]
[1762007478635,4.58733008,184.16,184.12,5.05970328]
[1762007478929,4.58733008,184.15,184.12,5.05970328]
[1762007479116,8.94,184.17,184.12,5.05970328]
[1762007479324,4.58013812,184.16,184.12,5.05970328]
[1762007479523,4.58013812,184.15,184.12,5.05970328]
[1762007479730,8.94,184.17,184.12,5.05970328]
[1762007479931,4.58011578,184.16,184.12,5.05970328]
[1762007480132,4.58011578,184.15,184.12,5.05970328]
[1762007480334,8.94,184.17,184.12,5.05970328]
[1762007480632,4.57953013,184.16,184.12,5.05970328]
[1762007480831,4.57953013,184.15,184.12,5.05970328]
[1762007481027,6.05,184.17,184.12,5.05970328]
[1762007481225,4.57923205,184.16,184.12,5.05970328]
[1762007481426,4.57923205,184.15,184.12,5.05970328]
[1762007481629,2.98,184.16,184.12,5.05970328]
[1762007481829,4.57895982,184.15,184.12,5.05970328]
[1762007482130,2.98,184.16,184.12,5.05970328]
[1762007482735,6.05,184.17,184.12,5.05970328]
[1762007482927,4.57824325,184.16,184.12,5.05970328]
[1762007483129,6.05,184.17,184.12,5.05970328]
[1762007483339,4.57770978,184.16,184.12,9.94970328]
[1762007483635,6.05,184.17,184.12,9.94970328]
[1762007483929,6.05,184.17,184.14,5.05970328]
[1762007484135,6.05,184.17,184.15,5.05970328]
[1762007484323,6.05,184.17,184.16,77.78]
[1762007484929,6.05,184.17,184.16,82.6692]
[1762007486029,2.98,184.25,184.17,4.8887]
[1762007486339,4.57762449,184.24,184.17,9.94840328]
[1762007486539,4.57762449,184.23,184.17,9.94840328]
[1762007486731,4.57762449,184.22,184.17,9.94840328]
[1762007486930,2.98,184.25,184.17,9.94840328]
[1762007487131,4.5783603,184.24,184.17,9.94840328]
[1762007487327,4.5783603,184.23,184.17,4.8887]
[1762007487632,2.98,184.25,184.17,4.8887]
[1762007487941,4.57662327,184.24,184.17,4.8887]
[1762007488136,6.77662327,184.23,184.17,4.8887]
[1762007488440,2.2,184.23,184.17,4.8887]
[1762007488636,2.2,184.23,184.17,9.94840328]
[1762007489340,2.2,184.23,184.17,4.8887]
[1762007489733,2.2,184.23,184.17,5.05970328]
[1762007490340,2.2,184.23,184.18,5.05970328]
[1762007491437,2.2,184.23,184.19,4.8882]
[1762007492949,2.2,184.23,184.2,4.8879]
[1762007494039,2.2,184.23,184.18,9.94830328]
[1762007495547,2.2,184.23,184.19,4.8881]
[1762007495846,2.2,184.23,184.19,9.94780328]
[1762007500546,2.2,184.23,184.2,5.05970328]
[1762007501546,2.2,184.23,184.19,9.94780328]
[1762007501849,2.2,184.23,184.19,4.8881]
[1762007502846,2.2,184.23,184.19,9.94780328]
[1762007503750,2.2,184.23,184.2,5.05970328]
[1762007505156,2.2,184.23,184.2,9.94760328]
[1762007506459,2.2,184.23,184.21,9.94730328]
[1762007506658,2.2,184.23,184.22,77.66]
[1762007506956,2.2,184.23,184.22,82.71970328]
[1762007507658,2.2,184.23,184.22,77.66]
[1762007516369,2.2,184.23,184.22,84.43141647]
[1762007519461,2.2,184.23,184.22,77.66]
[1762007523568,2.98,184.29,184.24,4.887]
[1762007523767,4.59875131,184.28,184.26,5.05702226]
[1762007523955,4.59875131,184.27,184.26,5.05702226]
[1762007524360,5.10213504,184.32,184.26,5.05702226]
[1762007524561,5.10213504,184.32,184.28,5.0584271]
[1762007524562,2.98,184.3,184.28,5.0584271]
[1762007524868,2.98,184.32,184.29,77.6]
[1762007525068,483.9044,184.53,184.29,82.6584271]
[1762007525069,4.60014016,184.31,184.29,82.6584271]
[1762007525261,9.7626,184.46,184.3,5.0584271]
[1762007525469,2.98,184.38,184.32,5.0584271]
[1762007525672,2.98,184.36,184.33,77.6]
[1762007525968,7.58229953,184.35,184.33,77.6]
[1762007526167,4.60229953,184.34,184.33,77.6]
[1762007526863,4.60229953,184.34,184.33,82.6584271]
[1762007527073,4.60229953,184.34,184.33,77.6]
[1762007527259,4.60229953,184.34,184.33,82.655677]
[1762007527466,4.60229953,184.34,184.33,77.6]
[1762007529173,4.60224436,184.34,184.33,77.6]
[1762007529672,7.58224436,184.34,184.33,77.6]
[1762007530173,7.58224436,184.34,184.33,82.65561936]
[1762007531772,7.58224436,184.34,184.33,5.05561936]
[1762007531970,2.98,184.33,184.31,5.05561936]
[1762007532169,7.58224436,184.32,184.3,2.12213504]
[1762007532369,2.98,184.32,184.3,2.12213504]
[1762007532568,2.98,184.32,184.29,6.74269635]
[1762007532569,2.98,184.32,184.31,5.05624578]
[1762007532769,2.98,184.31,184.3,5.05624578]
[1762007532974,2.98,184.34,184.3,79.68213504]
[1762007533174,4.5969715,184.33,184.32,2.12213504]
[1762007533377,4.5969715,184.33,184.31,5.05645291]
[1762007533577,4.5969715,184.32,184.31,5.05645291]
[1762007534176,2.98,184.36,184.3,86.42483139]
[1762007534375,4.60003844,184.35,184.32,7.17758464]
[1762007534574,4.60003844,184.34,184.32,7.17758464]
[1762007534771,4.60003844,184.33,184.32,7.17758464]
[1762007535170,2.98,184.36,184.32,7.17758464]
[1762007535388,2.98,184.34,184.32,7.17758464]
[1762007535676,4.59973511,184.33,184.32,7.17758464]
[1762007535977,2.98,184.34,184.32,7.17758464]
[1762007537371,2.71,184.36,184.32,7.17758464]
[1762007537572,4.59815996,184.35,184.32,7.17758464]
[1762007537772,4.59815996,184.34,184.32,7.17758464]
[1762007538075,2.71,184.36,184.32,7.17758464]
[1762007538267,4.59691033,184.35,184.32,7.17758464]
[1762007538475,7.30691033,184.34,184.32,7.17758464]
[1762007538773,2.71,184.34,184.32,7.17758464]
[1762007539584,2.71,184.43,184.32,7.17758464]
[1762007539882,2.71,184.41,184.34,5.0554496]
[1762007540178,2.71,184.39,184.35,77.54]
[1762007540385,2.71,184.37,184.35,77.54]
[1762007540685,7.50834656,184.36,184.35,77.54]
[1762007542387,2.92,184.36,184.35,77.54]
[1762007542680,2.92,184.38,184.35,79.66213504]
[1762007542893,2.92,184.38,184.37,2.12213504]
[1762007543183,7.50734679,184.38,184.37,2.12213504]
[1762007545885,2.92,184.41,184.37,7.17758464]
[1762007546188,7.50663704,184.4,184.39,2.12213504]
[1762007546378,7.50663704,184.4,184.39,79.64213504]
[1762007546583,7.50663704,184.4,184.39,77.52]
[1762007547180,4.58663704,184.4,184.39,77.52]
[1762007547485,7.8021,184.43,184.39,79.64213504]
[1762007547486,2.92,184.42,184.39,79.64213504]
[1762007547788,4.58589517,184.41,184.39,79.64213504]
[1762007547986,2.92,184.42,184.39,79.64213504]
[1762007548177,4.58464041,184.41,184.39,79.64213504]
[1762007548479,4.8821,184.43,184.39,79.64213504]
[1762007548683,7.5053717,184.42,184.39,79.64213504]
[1762007548872,2.92,184.42,184.41,2.12213504]
[1762007549072,7.5053717,184.42,184.41,2.12213504]
[1762007552583,2.92,184.41,184.39,79.64213504]
[1762007553491,2.92,184.41,184.39,77.52]
[1762007556087,2.92,184.42,184.39,77.52]
[1762007556492,7.8015,184.45,184.39,77.52]
[1762007556696,2.92,184.43,184.39,77.52]
[1762007556986,4.58353755,184.42,184.39,77.52]
[1762007557188,4.58405141,184.41,184.39,77.52]
[1762007557390,2.92,184.43,184.39,77.52]
[1762007557588,4.58419271,184.42,184.39,77.52]
[1762007557789,4.58419271,184.41,184.39,77.52]
[1762007557991,2.92,184.42,184.39,77.52]
[1762007558190,7.50375152,184.41,184.39,77.52]
[1762007558391,2.92,184.41,184.39,77.52]
[1762007560789,2.92,184.41,184.39,80.82922156]
[1762007560991,2.92,184.51,184.39,80.82922156]
[1762007561193,2.92,184.49,184.39,80.82922156]
[1762007561385,2.92,184.47,184.39,80.82922156]
[1762007561587,2.92,184.45,184.39,80.82922156]
[1762007561793,2.92,184.43,184.39,80.82922156]
[1762007562097,4.58469308,184.42,184.39,80.82922156]
[1762007562296,4.58469308,184.41,184.39,80.82922156]
[1762007562595,4.8817,184.45,184.39,80.82922156]
[1762007562797,11.83736724,184.44,184.39,80.82922156]
[1762007562990,4.58665535,184.43,184.39,80.82922156]
[1762007563193,4.58665535,184.42,184.39,80.82922156]
[1762007563396,4.58665535,184.41,184.39,85.87348319]
[1762007563584,2.92,184.44,184.39,85.87348319]
[1762007563788,4.58639939,184.43,184.39,85.87348319]
[1762007563986,4.58639939,184.42,184.39,85.87348319]
[1762007564199,4.58761238,184.41,184.39,85.87348319]
[1762007564401,2.92,184.44,184.39,85.87348319]
[1762007564603,4.58761238,184.43,184.39,85.87348319]
[1762007564902,4.58761238,184.42,184.39,8.35348319]
[1762007565098,4.58761238,184.41,184.4,77.44]
[1762007566200,4.58761238,184.41,184.4,82.48426163]
[1762007569093,4.58761238,184.41,184.4,77.44]
[1762007570803,7.681,184.47,184.4,77.44]
[1762007571011,8.91982681,184.46,184.43,5.05976323]
[1762007571199,2.8,184.5,184.45,5.05822338]
[1762007571506,2.8,184.48,184.45,5.05822338]
[1762007571702,4.33673504,184.47,184.45,5.05822338]
[1762007572007,2.8,184.48,184.45,5.05822338]
[1762007572206,4.8805,184.49,184.44,85.78744494]
[1762007572207,7.13550541,184.47,184.44,85.78744494]
[1762007572407,80.84922156,184.58,184.44,5.05822338]
[1762007572408,2.8,184.46,184.44,5.05822338]
[1762007572703,2.8,184.46,184.45,77.42]
[1762007573007,7.13557297,184.46,184.45,44.38]
[1762007573406,12.01697297,184.46,184.45,44.38]
[1762007578414,9.21697297,184.46,184.45,44.38]
[1762007579112,4.8807,184.48,184.45,44.38]
[1762007579303,4.31260118,184.47,184.45,49.43822338]
[1762007579607,7.6807,184.48,184.45,49.43822338]
[1762007579998,4.31342011,184.47,184.45,49.43822338]
[1762007580200,7.6807,184.48,184.45,49.43822338]
[1762007580411,4.31408813,184.47,184.45,49.43822338]
[1762007580598,7.6807,184.48,184.45,49.43822338]
[1762007580803,2.8,184.46,184.45,5.05822338]
[1762007581003,2.8,184.45,184.44,77.4]
[1762007581208,7.11413141,184.45,184.44,77.4]
[1762007581605,4.31413141,184.45,184.44,77.4]
[1762007582006,4.8814,184.46,184.44,77.4]
[1762007582218,2.8,184.58,184.45,5.06005548]
[1762007582412,2.8,184.56,184.46,5.06005548]
[1762007582610,2.8,184.54,184.46,5.06005548]
[1762007582810,2.8,184.52,184.46,5.06005548]
[1762007583011,11.61286195,184.51,184.46,5.06005548]
[1762007583303,2.8,184.49,184.46,5.06005548]
[1762007583501,8.81286195,184.48,184.46,5.06005548]
[1762007583708,7.29779561,184.47,184.46,5.06031031]
[1762007584011,2.8,184.46,184.43,82.44031031]
[1762007584200,11.61195188,184.45,184.43,82.44031031]
[1762007584405,4.49779561,184.44,184.43,82.44031031]
[1762007584611,7.29779561,184.44,184.43,5.06031031]
[1762007584807,2.8,184.43,184.42,5.06031031]
[1762007585011,11.61269887,184.43,184.41,74.94031031]
[1762007585208,4.49779561,184.42,184.41,74.94031031]
[1762007586017,8.81298871,184.42,184.41,74.94031031]
[1762007589121,8.81298871,184.42,184.41,69.88]
[1762007591819,4.49779561,184.42,184.41,76.62269635]
[1762007592123,4.49779561,184.42,184.41,70.96]
[1762007592815,4.49779561,184.42,184.41,69.88]
[1762007594108,4.49779561,184.42,184.41,84.14059445]
[1762007594310,4.49779561,184.42,184.41,77.38]
[1762007594919,4.49779561,184.42,184.41,87.53712762]
[1762007595519,7.6804,184.5,184.41,88.61712762]
[1762007595819,11.61958811,184.49,184.46,5.06967961]
[1762007596028,8.81958811,184.48,184.47,77.36]
[1762007597124,8.81958811,184.48,184.47,82.42967961]
[1762007598417,8.81958811,184.48,184.47,77.36]
[1762007598825,4.5007538,184.48,184.47,77.36]
[1762007599021,4.5007538,184.48,184.47,84.11957282]
[1762007600324,4.5007538,184.48,184.47,77.36]
[1762007601417,4.5007538,184.48,184.47,84.11256667]
[1762007602222,4.5007538,184.48,184.47,6.75256667]
[1762007602424,4.5007538,184.48,184.47,84.11256667]
[1762007602619,4.5007538,184.48,184.47,84.09256667]
[1762007603224,4.5007538,184.48,184.47,77.34]
[1762007603421,4.48856417,184.48,184.47,77.34]
[1762007603930,4.48856417,184.48,184.46,6.75256667]
[1762007604130,4.8801,184.5,184.47,84.09256667]
[1762007604340,4.8801,184.5,184.49,5.06130849]
[1762007604516,13.67913362,184.5,184.49,5.06130849]
[1762007605729,528.07972458,184.5,184.49,82.40130849]
[1762007605930,528.07972458,184.5,184.49,5.06130849]
[1762007606131,528.07972458,184.5,184.49,62.98130849]
[1762007606426,523.76877991,184.5,184.49,62.98130849]
[1762007606626,523.76877991,184.5,184.49,5.06130849]
[1762007606828,523.76877991,184.5,184.49,82.40130849]
[1762007607025,518.88867991,184.5,184.49,82.40130849]
[1762007607229,523.19967228,184.5,184.49,82.40130849]
[1762007607428,518.88867991,184.5,184.49,82.40130849]
[1762007608633,4.48808895,184.5,184.49,82.40130849]
[1762007609231,4.48808895,184.5,184.49,77.34]
[1762007609936,4.48808895,184.5,184.49,82.40130849]
[1762007610633,4.48808895,184.5,184.49,77.34]
[1762007611331,7.46808895,184.5,184.49,77.34]
[1762007611535,11.76117149,184.5,184.49,77.34]
[1762007611932,2.98,184.49,184.47,5.06130849]
[1762007612130,4.48808895,184.48,184.47,5.06130849]
[1762007612432,4.48808895,184.48,184.47,78.62130849]
[1762007612945,7.46808895,184.48,184.47,78.62130849]
[1762007613534,7.46808895,184.48,184.47,73.56]
[1762007613934,2.98,184.47,184.46,5.06130849]
[1762007614135,7.46808895,184.47,184.46,82.38130849]
[1762007614835,7.46808895,184.47,184.46,5.06130849]
[1762007615035,2.98,184.46,184.44,5.06130849]
[1762007615241,2.98,184.46,184.45,77.32]
[1762007615434,11.76132067,184.46,184.45,77.32]
[1762007616336,11.76132067,184.46,184.43,5.06130849]
[1762007616545,2.98,184.44,184.42,5.06130849]
[1762007616733,7.46707967,184.43,184.41,5.06130849]
[1762007617041,2.98,184.43,184.42,77.32]
[1762007617225,7.46536369,184.43,184.42,77.32]
[1762007621148,4.48536369,184.43,184.42,77.32]
[1762007627639,4.48536369,184.43,184.42,82.38130849]
[1762007628643,4.48536369,184.43,184.42,5.06130849]
[1762007628644,7.20536369,184.43,184.42,5.06130849]
[1762007628850,7.20536369,184.43,184.42,77.32]
[1762007629345,4.48536369,184.43,184.42,77.32]
[1762007634267,4.50867226,184.43,184.42,77.32]
[1762007636155,2.72,184.42,184.4,5.06130849]
[1762007636360,4.50867226,184.41,184.4,5.06130849]
[1762007636652,4.50867226,184.41,184.4,82.36130849]
[1762007638459,4.50867226,184.41,184.4,77.3]
[1762007640265,4.50867226,184.41,184.4,82.35859696]
[1762007641459,4.50867226,184.41,184.4,77.3]
[1762007642355,2.72,184.51,184.4,79.41742222]
[1762007642557,8.86072655,184.5,184.44,5.05756599]
[1762007642862,8.86295611,184.49,184.46,2.11742222]
[1762007643156,8.86295611,184.48,184.46,2.11742222]
[1762007643352,4.50936879,184.47,184.46,2.11742222]
[1762007643550,4.50936879,184.47,184.46,7.17498821]
[1762007644457,7.22936879,184.47,184.45,5.05756599]
[1762007644656,2.72,184.47,184.46,77.3]
[1762007644961,2.72,184.46,184.44,5.05756599]
[1762007645162,7.22849854,184.45,184.43,5.05756599]
[1762007645365,2.72,184.45,184.44,45.74]
[1762007645564,11.58201206,184.45,184.44,45.74]
[1762007646761,2.72,184.44,184.41,5.05796198]
[1762007646963,8.86201206,184.43,184.42,77.28]
[1762007652469,8.86201206,184.43,184.42,82.33796198]
[1762007652667,4.50812661,184.43,184.42,77.28]
[1762007652968,4.50812661,184.43,184.42,84.03256667]
[1762007653176,2.72,184.51,184.42,84.03256667]
[1762007653374,11.59306637,184.5,184.45,5.06432254]
[1762007653575,8.87306637,184.49,184.46,82.34432254]
[1762007653759,8.87306637,184.48,184.46,82.34432254]
[1762007653959,8.87306637,184.47,184.46,82.34432254]
[1762007654357,8.87306637,184.47,184.46,84.46174476]
[1762007654566,4.51407971,184.47,184.46,86.14998889]
[1762007655168,4.51407971,184.47,184.46,79.39742222]
[1762007655377,4.51407971,184.47,184.46,86.14998889]
[1762007657672,2.72,184.57,184.46,87.22998889]
[1762007657860,4.36191601,184.56,184.5,5.06557042]
[1762007658066,7.08191601,184.55,184.51,25.96]
[1762007658370,4.36191601,184.54,184.51,25.96]
[1762007658570,4.36191601,184.53,184.51,25.96]
[1762007658762,4.36191601,184.52,184.51,31.02557042]
[1762007660259,4.36191601,184.52,184.51,25.96]
[1762007663373,7.22191601,184.52,184.5,63.16]
[1762007663571,7.21314398,184.51,184.49,77.24]
[1762007663770,7.21314398,184.51,184.48,5.06557042]
[1762007663771,2.86,184.49,184.48,77.24]
[1762007663971,7.21269762,184.49,184.48,77.24]
[1762007664372,2.86,184.49,184.48,77.24]
[1762007665174,2.86,184.52,184.48,77.24]
[1762007665371,2.86,184.5,184.48,77.24]
[1762007667982,2.86,184.53,184.48,77.24]
[1762007668175,2.86,184.51,184.48,77.24]
[1762007668476,7.21200673,184.5,184.48,77.24]
[1762007668676,2.86,184.5,184.48,77.24]
[1762007669182,2.86,184.54,184.48,77.24]
[1762007669378,2.86,184.52,184.48,77.24]
[1762007669578,7.21884224,184.51,184.48,77.24]
[1762007669882,11.63502228,184.5,184.48,77.24]
[1762007670076,4.41618004,184.49,184.48,77.24]
[1762007672676,2.86,184.56,184.48,82.30557042]
[1762007672984,11.63541681,184.55,184.5,2.11742222]
[1762007673182,8.77541681,184.54,184.5,2.11742222]
[1762007673374,8.77492148,184.53,184.5,2.11742222]
[1762007673689,4.41676704,184.52,184.5,2.11742222]
[1762007673985,4.41676704,184.51,184.5,2.11742222]
[1762007674372,2.86,184.58,184.49,5.06557042]
[1762007674586,2.86,184.56,184.5,5.06557042]
[1762007674784,8.77425522,184.55,184.5,5.06557042]
[1762007675078,8.77425522,184.54,184.5,5.06557042]
[1762007675385,4.4165498,184.53,184.5,5.06557042]
[1762007675579,4.4165498,184.52,184.5,5.06557042]
[1762007675874,2.86,184.56,184.5,5.06557042]
[1762007676079,11.63213903,184.55,184.5,5.06557042]
[1762007676280,11.63213903,184.54,184.5,5.06557042]
[1762007676480,4.41567099,184.53,184.5,5.06557042]
[1762007676782,7.27567099,184.52,184.51,77.22]
[1762007677272,4.41567099,184.52,184.51,77.22]
[1762007678579,4.41485731,184.52,184.51,77.22]
[1762007679382,7.27485731,184.52,184.51,77.22]
[1762007679785,4.41485731,184.52,184.51,77.22]
[1762007684886,4.41485731,184.52,184.5,5.06557042]
[1762007685082,2.86,184.56,184.51,77.2]
[1762007685284,2.86,184.54,184.51,77.2]
[1762007685486,8.77472591,184.53,184.51,77.2]
[1762007685688,4.41697314,184.52,184.51,77.2]
[1762007686489,2.7,184.51,184.48,5.05252477]
[1762007686695,4.41697314,184.5,184.49,77.2]
[1762007687093,4.41697314,184.5,184.49,82.25252477]
[1762007688491,4.41697314,184.5,184.49,77.2]
[1762007688696,2.7,184.56,184.49,77.2]
[1762007688898,8.77870714,184.55,184.51,5.05487479]
[1762007689097,8.77870714,184.54,184.52,77.2]
[1762007689286,4.41916371,184.53,184.52,77.2]
[1762007689689,8.77842916,184.53,184.52,77.2]
[1762007692401,4.41916371,184.53,184.52,77.2]
[1762007693024,8.78074998,184.53,184.52,77.2]
[1762007694320,11.48074998,184.53,184.51,5.05487479]
[1762007694626,11.48074998,184.52,184.51,5.05487479]
[1762007694820,11.48074998,184.52,184.51,45.69487479]
[1762007695324,8.78074998,184.52,184.51,45.69487479]
[1762007696221,8.78074998,184.52,184.51,40.64]
[1762007696431,8.78074998,184.52,184.51,77.18]
[1762007698328,4.36158627,184.52,184.51,77.18]
[1762007698528,8.79500283,184.52,184.51,77.18]
[1762007701131,11.49500283,184.52,184.51,77.18]
[1762007702336,11.49500283,184.52,184.51,82.25154791]
[1762007704439,8.79500283,184.52,184.51,82.25154791]
[1762007704624,518.57497442,184.52,184.51,82.25154791]
[1762007704935,11.49500283,184.52,184.51,82.25154791]
[1762007707431,11.49500283,184.52,184.51,77.18]
[1762007708131,8.79500283,184.52,184.51,83.93256667]
[1762007708337,8.79500283,184.52,184.51,77.18]
[1762007708837,4.43341656,184.52,184.51,87.31935923]
[1762007709340,2.7,184.64,184.51,78.26]
[1762007709542,2.7,184.62,184.58,5.06868455]
[1762007709740,7.09861058,184.61,184.59,77.18]
[1762007709932,4.39861058,184.6,184.59,77.18]
[1762007710239,4.39861058,184.6,184.59,82.24868455]
[1762007710733,7.09861058,184.6,184.59,82.24868455]
[1762007710933,7.09861058,184.6,184.59,77.18]
[1762007712636,4.39861058,184.6,184.59,77.18]
[1762007712826,4.39421808,184.6,184.59,77.18]
[1762007714742,7.09421808,184.6,184.59,77.18]
[1762007715841,4.39421808,184.6,184.59,77.18]
[1762007717438,7.10421808,184.6,184.59,77.16]
[1762007719850,2.71,184.59,184.57,5.06868455]
[1762007720046,2.71,184.57,184.55,5.06868455]
[1762007720248,2.71,184.57,184.56,73.38]
[1762007720440,7.09809488,184.57,184.56,77.14]
[1762007721149,7.09809488,184.57,184.54,5.06868455]
[1762007721334,2.91,184.55,184.54,5.06868455]
[1762007721535,2.91,184.55,184.52,5.06868455]
[1762007721536,2.91,184.54,184.52,5.06868455]
[1762007721739,11.75399096,184.53,184.51,5.06868455]
[1762007721950,8.84399096,184.52,184.51,5.06868455]
[1762007722353,8.84399096,184.52,184.51,82.20868455]
[1762007723347,11.75399096,184.52,184.51,5.06868455]
[1762007723649,11.75399096,184.52,184.51,77.14]
[1762007723946,8.84399096,184.52,184.51,77.14]
[1762007724151,11.75399096,184.52,184.51,77.14]
[1762007725757,8.84399096,184.52,184.51,82.20868455]
[1762007728254,8.83934674,184.52,184.51,82.20868455]
[1762007730866,8.83934674,184.52,184.51,77.14]
[1762007731054,8.83934674,184.52,184.51,82.20868455]
[1762007733361,8.83962182,184.52,184.51,82.20868455]
[1762007735869,2.91,184.56,184.51,82.20868455]
[1762007735870,2.91,184.56,184.51,77.14]
[1762007736063,8.86496026,184.55,184.53,5.05976252]
[1762007736363,4.45492096,184.54,184.51,6.75824607]
[1762007736570,2.91,184.59,184.52,77.14]
[1762007736759,2.91,184.57,184.54,5.05916256]
[1762007736959,8.86489366,184.56,184.55,77.14]
[1762007740174,4.45537696,184.56,184.55,77.14]
[1762007740474,2.91,184.61,184.55,77.14]
[1762007740662,8.88404725,184.6,184.56,5.05804957]
[1762007740863,8.88404725,184.59,184.57,5.05804957]
[1762007741062,8.88404725,184.58,184.57,5.05804957]
[1762007741263,8.88404725,184.58,184.57,82.19804957]
[1762007743676,8.88182085,184.58,184.57,82.19804957]
[1762007744175,4.46549089,184.58,184.57,82.19804957]
[1762007746075,2.91,184.61,184.57,82.19804957]
[1762007746378,8.87919217,184.6,184.57,82.19804957]
[1762007746573,8.87919217,184.59,184.57,82.19804957]
[1762007746775,2.8,184.64,184.57,82.19804957]
[1762007746979,11.67881398,184.63,184.57,82.19804957]
[1762007747177,2.11385057,184.65,184.57,82.19804957]
[1762007747178,11.67881398,184.62,184.57,82.19804957]
[1762007747379,8.87881398,184.61,184.57,82.19804957]
[1762007747565,8.87881398,184.6,184.58,5.05804957]
[1762007747770,2.8,184.68,184.58,6.75824607]
[1762007748073,11.67982488,184.67,184.61,5.05390517]
[1762007748280,11.67982488,184.66,184.62,77.12]
[1762007748468,8.87982488,184.65,184.62,77.12]
[1762007748668,8.87982488,184.64,184.62,77.12]
[1762007748974,2.8,184.7,184.62,82.17390517]
[1762007749276,11.68360212,184.69,184.62,82.17390517]
[1762007749478,8.88360212,184.68,184.63,5.05390517]
[1762007749679,8.88360212,184.67,184.63,5.05390517]
[1762007749976,8.88360212,184.66,184.63,5.05390517]
[1762007750173,8.88360212,184.65,184.62,82.17390517]
[1762007750374,4.46923359,184.64,184.62,82.17390517]
[1762007750675,2.8,184.71,184.63,5.05390517]
[1762007750873,8.88164708,184.7,184.65,2.11385057]
[1762007751074,8.88164708,184.69,184.66,77.1]
[1762007751279,8.88164708,184.68,184.66,77.1]
[1762007751471,8.88164708,184.67,184.66,77.1]
[1762007751877,4.46855059,184.67,184.66,77.1]
[1762007752080,2.8,184.72,184.66,77.1]
[1762007752283,2.8,184.7,184.66,77.1]
[1762007752482,8.87613704,184.69,184.66,77.1]
[1762007752778,8.87613704,184.68,184.66,77.1]
[1762007752969,2.8,184.7,184.66,77.1]
[1762007753169,2.8,184.68,184.66,77.1]
[1762007753369,8.87064988,184.67,184.66,77.1]
[1762007755984,4.46104403,184.67,184.66,77.1]
[1762007756183,2.8,184.69,184.66,77.1]
[1762007756384,8.86845053,184.68,184.66,77.1]
[1762007756586,2.8,184.69,184.66,77.1]
[1762007756789,8.86845297,184.68,184.66,77.1]
[1762007757081,2.8,184.69,184.66,77.1]
[1762007757266,8.86577755,184.68,184.66,77.1]
[1762007757473,2.8,184.69,184.66,77.1]
[1762007757674,8.86509457,184.68,184.66,77.1]
[1762007757869,2.8,184.69,184.66,77.1]
[1762007758074,8.86562928,184.68,184.66,77.1]
[1762007758274,2.8,184.69,184.66,77.1]
[1762007758485,11.66311418,184.68,184.66,77.1]
[1762007758683,2.8,184.68,184.66,77.1]
[1762007760992,11.69138266,184.67,184.66,77.1]
[1762007765492,2.8,184.7,184.66,77.1]
[1762007765795,4.45727186,184.69,184.66,77.1]
[1762007765989,2.8,184.73,184.66,77.1]
[1762007766189,8.88741333,184.72,184.66,77.1]
[1762007766390,11.68741333,184.71,184.66,77.1]
[1762007766581,8.88741333,184.7,184.66,77.1]